bitfinex/quotes_BTCUSD_20250225
["timestamp","ask_amount","ask_price","bid_price","bid_amount"]
[1740483511656,0.00866469,88599.0,88584.0,0.07696319]
[1740483512013,0.00866469,88599.0,88582.0,0.02315]
[1740483512218,0.00866469,88599.0,88584.0,0.07696319]
[1740483512846,0.00866469,88599.0,88586.0,0.1]
[1740483513208,0.00552469,88599.0,88584.0,0.07696319]
[1740483513446,0.00552469,88599.0,88586.0,0.17696319]
[1740483513644,0.00552469,88599.0,88593.0,0.1]
[1740483514126,0.0767,88632.0,88597.0,0.1]
[1740483514329,0.00767,88631.0,88599.0,0.07696319]
[1740483514486,0.0812,88644.0,88599.0,0.07696319]
[1740483514487,0.01454085,88643.0,88599.0,0.07696319]
[1740483514697,0.00847629,88605.0,88599.0,0.07696319]
[1740483516481,0.00847629,88605.0,88597.0,0.02315]
[1740483516885,0.02303681,88639.0,88597.0,0.02315]
[1740483516886,0.05659597,88658.0,88597.0,4e-05]
[1740483517088,0.008382,88598.0,88584.0,0.1]
[1740483517292,0.008382,88598.0,88589.0,0.1]
[1740483517527,0.00841683,88600.0,88599.0,0.1]
[1740483517725,0.25895726,88634.0,88599.0,0.1]
[1740483517928,0.00862154,88603.0,88600.0,0.10004]
[1740483518426,0.00862154,88603.0,88600.0,4e-05]
[1740483518840,0.00862154,88603.0,88600.0,0.10004]
[1740483520793,0.0008458,88634.0,88600.0,0.10004]
[1740483521016,0.0008458,88634.0,88600.0,0.10008]
[1740483521643,0.00851214,88605.0,88600.0,8e-05]
[1740483521772,0.00851214,88605.0,88600.0,4e-05]
[1740483525274,0.00851214,88605.0,88603.0,0.1]
[1740483525912,0.00851214,88605.0,88604.0,0.1]
[1740483526110,0.0008458,88634.0,88613.0,0.1]
[1740483526269,0.00833154,88614.0,88613.0,0.1]
[1740483527067,0.00833154,88614.0,88608.0,0.1]
[1740483527294,0.00833154,88614.0,88613.0,0.1]
[1740483527876,0.00833154,88614.0,88606.0,0.1]
[1740483528057,0.00833154,88614.0,88610.0,0.1]
[1740483528256,0.00833154,88614.0,88600.0,8e-05]
[1740483528683,0.00833154,88614.0,88602.0,0.1]
[1740483529292,0.00833154,88614.0,88602.0,0.2]
[1740483529490,0.00833154,88614.0,88601.0,0.1]
[1740483529687,0.00833154,88614.0,88600.0,8e-05]
[1740483529906,0.00833154,88614.0,88600.0,0.10008]
[1740483531615,0.00833154,88614.0,88600.0,0.1017706]
[1740483532020,0.00833154,88614.0,88607.0,0.1]
[1740483532682,0.00833154,88614.0,88600.0,0.1017706]
[1740483532851,0.03515565,88613.0,88606.0,0.1]
[1740483533284,0.00833154,88614.0,88606.0,0.1]
[1740483533620,0.03518463,88613.0,88606.0,0.1]
[1740483535343,0.03518463,88613.0,88607.0,0.1]
[1740483536756,0.03518463,88613.0,88607.0,0.2]
[1740483537082,0.03518463,88613.0,88612.0,0.2826]
[1740483537281,0.03525093,88633.0,88628.0,0.1]
[1740483537447,0.0008458,88634.0,88628.0,0.1]
[1740483537644,0.03524879,88633.0,88628.0,0.1]
[1740483537842,0.00832559,88631.0,88630.0,0.1]
[1740483538100,0.03524879,88631.0,88630.0,0.1]
[1740483538278,0.0008458,88634.0,88631.0,0.1]
[1740483538453,0.03524543,88633.0,88631.0,0.1]
[1740483539605,0.04379404,88633.0,88631.0,0.2]
[1740483539809,0.03524543,88632.0,88631.0,0.2]
[1740483540835,0.01454085,88665.0,88631.0,0.1]
[1740483541064,0.01454085,88665.0,88586.0,0.1]
[1740483541065,0.00866832,88632.0,88607.0,0.1]
[1740483541214,0.00866832,88632.0,88591.0,0.0792]
[1740483541416,0.03523345,88631.0,88596.0,0.1]
[1740483541582,0.03523345,88631.0,88605.0,0.1]
[1740483542509,0.03523345,88644.0,88605.0,0.1]
[1740483542711,0.01454085,88642.0,88599.0,4e-05]
[1740483542932,0.01454085,88640.0,88604.0,0.1]
[1740483543136,0.01392085,88638.0,88605.0,0.1]
[1740483543350,0.03523345,88637.0,88605.0,0.1]
[1740483543791,0.00847304,88607.0,88599.0,4e-05]
[1740483544352,0.00847304,88607.0,88559.0,0.01454085]
[1740483544353,0.00847304,88607.0,88584.0,0.0016916]
[1740483544553,0.03526604,88606.0,88584.0,0.0016916]
[1740483544760,0.03526604,88606.0,88563.0,0.53384]
[1740483544761,0.00863351,88584.0,88572.0,8e-05]
[1740483544981,0.03527202,88583.0,88572.0,8e-05]
[1740483545181,0.03527202,88583.0,88557.0,4e-05]
[1740483545390,0.03527202,88583.0,88561.0,0.08832701]
[1740483545653,0.03527202,88583.0,88557.0,4e-05]
[1740483545654,0.03527202,88583.0,88564.0,0.08832701]
[1740483545865,0.00863351,88584.0,88576.0,0.09042051]
[1740483546040,0.04036278,88583.0,88576.0,0.09042051]
[1740483546244,0.00847304,88607.0,88576.0,0.09042051]
[1740483546245,0.00847304,88607.0,88590.0,0.1]
[1740483546420,0.03524334,88606.0,88583.0,0.3235]
[1740483547506,0.07673576,88606.0,88583.0,0.3235]
[1740483547643,0.03524334,88605.0,88583.0,0.28416]
[1740483547844,0.03524334,88606.0,88570.0,0.08832701]
[1740483548069,0.04978419,88605.0,88570.0,0.08832701]
[1740483548241,0.00860491,88584.0,88565.0,0.17874752]
[1740483548447,0.03523696,88583.0,88565.0,0.17874752]
[1740483548763,0.03523696,88583.0,88566.0,0.08832701]
[1740483548927,0.00860491,88584.0,88577.0,0.08832701]
[1740483549132,0.00860491,88584.0,88583.0,0.09042051]
[1740483550721,0.00860491,88584.0,88583.0,0.17874752]
[1740483550884,0.00860491,88584.0,88583.0,0.08832701]
[1740483551679,0.00860491,88584.0,88583.0,0.18832701]
[1740483552518,0.09994169,88600.0,88577.0,0.31277417]
[1740483552519,0.09994169,88600.0,88591.0,0.08832701]
[1740483552703,0.09994169,88601.0,88594.0,0.08832701]
[1740483552923,0.09994169,88601.0,88600.0,0.08832701]
[1740483553067,0.09994169,88601.0,88593.0,0.08832701]
[1740483553270,0.09994169,88601.0,88577.0,0.31277417]
[1740483553271,0.26084147,88600.0,88577.0,0.31277417]
[1740483553493,0.09994169,88601.0,88585.0,0.1]
[1740483553698,0.09994169,88601.0,88599.0,0.1]
[1740483554071,0.09994169,88601.0,88578.0,0.09042051]
[1740483554072,0.09994169,88601.0,88590.0,0.1]
[1740483554684,0.09994169,88601.0,88600.0,0.1]
[1740483555638,0.09994169,88601.0,88591.0,0.1]
[1740483555975,0.09994169,88601.0,88593.0,0.1]
[1740483556173,0.09994169,88601.0,88579.0,0.00158011]
[1740483556471,0.09994169,88601.0,88593.0,0.1]
[1740483556730,0.0404338,88612.0,88600.0,0.0016958]
[1740483557837,0.0404338,88612.0,88600.0,0.1016958]
[1740483558388,0.0404338,88612.0,88600.0,0.0016958]
[1740483561564,0.0404338,88612.0,88600.0,0.1016958]
[1740483561738,0.0404338,88612.0,88603.0,0.1]
[1740483562603,0.2904338,88612.0,88604.0,0.1]
[1740483562758,0.2904338,88612.0,88606.0,0.1]
[1740483564522,0.0404338,88612.0,88606.0,0.1]
[1740483564673,0.0404338,88612.0,88609.0,0.1]
[1740483564834,0.0404338,88612.0,88605.0,0.1]
[1740483565045,0.0404338,88612.0,88601.0,0.23307417]
[1740483565244,0.0404338,88612.0,88584.0,0.0787]
[1740483565446,0.58406682,88611.0,88575.0,0.0468]
[1740483565648,0.29975371,88610.0,88575.0,0.0468]
[1740483565845,0.03521286,88609.0,88575.0,0.0468]
[1740483566085,0.03521286,88609.0,88582.0,0.1]
[1740483566286,0.03521286,88609.0,88575.0,0.0468]
[1740483566287,0.03521286,88609.0,88584.0,0.1]
[1740483566446,0.03521286,88609.0,88585.0,0.1]
[1740483566644,0.00839363,88595.0,88590.0,0.1]
[1740483566843,0.00839363,88595.0,88591.0,0.1]
[1740483567109,0.2898967,88611.0,88591.0,0.1]
[1740483567316,0.03521198,88610.0,88591.0,0.1]
[1740483567458,0.04654842,88609.0,88591.0,0.1]
[1740483567832,0.0404338,88612.0,88591.0,0.1]
[1740483567834,0.0404338,88612.0,88600.0,0.1]
[1740483568228,0.0404338,88612.0,88611.0,0.1]
[1740483568644,0.0404338,88612.0,88611.0,0.31202527]
[1740483568856,0.0404338,88612.0,88611.0,0.84586527]
[1740483569057,0.01770283,88663.0,88632.0,0.1]
[1740483569352,0.0311479,88666.0,88632.0,0.1]
[1740483569526,0.04770097,88643.0,88632.0,0.1]
[1740483569742,0.0008453,88643.0,88632.0,0.1]
[1740483570380,0.0008453,88643.0,88628.0,0.1]
[1740483570381,0.0085044,88637.0,88628.0,0.1]
[1740483570769,0.0085044,88637.0,88626.0,0.1]
[1740483570981,0.0085044,88637.0,88628.0,0.1]
[1740483571407,0.0085044,88637.0,88632.0,4e-05]
[1740483572840,0.04621056,88643.0,88632.0,0.10004]
[1740483574238,0.06770373,88643.0,88632.0,0.10004]
[1740483574438,0.00863774,88638.0,88632.0,0.10004]
[1740483575382,0.04621056,88643.0,88632.0,0.10004]
[1740483576436,0.00865561,88639.0,88632.0,0.10004]
[1740483576788,0.04621056,88643.0,88634.0,0.1]
[1740483578705,0.04621056,88643.0,88632.0,4e-05]
[1740483578706,0.04621056,88643.0,88640.0,0.1]
[1740483578926,0.04621056,88643.0,88641.0,0.1]
[1740483579129,0.04621056,88643.0,88642.0,0.31202527]
[1740483579326,0.0008453,88643.0,88642.0,0.31202527]
[1740483579589,0.0008453,88643.0,88642.0,0.36142527]
[1740483580889,0.0008453,88643.0,88642.0,0.44322527]
[1740483582093,0.04495238,88650.0,88643.0,0.01454085]
[1740483582297,0.10139753,88655.0,88643.0,0.01454085]
[1740483582298,0.10139753,88655.0,88654.0,0.2326]
[1740483582516,0.10139753,88655.0,88654.0,0.99046527]
[1740483583145,0.10139753,88655.0,88654.0,1.0361269]
[1740483583345,0.05139753,88655.0,88654.0,1.0361269]
[1740483583739,0.0008479,88666.0,88656.0,0.01454085]
[1740483583954,0.0008479,88666.0,88658.0,0.082]
[1740483584207,0.0008479,88666.0,88661.0,0.082]
[1740483584385,0.0008479,88666.0,88662.0,0.00157845]
[1740483584680,0.0008479,88666.0,88665.0,0.11454085]
[1740483584879,0.0008479,88666.0,88665.0,0.23951925]
[1740483585083,0.0008479,88666.0,88665.0,0.23794085]
[1740483585287,0.05664929,88718.0,88688.0,0.1471]
[1740483585469,0.05664929,88718.0,88688.0,0.90654345]
[1740483585661,0.05664929,88718.0,88688.0,0.90496527]
[1740483585828,0.04537668,88691.0,88688.0,0.90496527]
[1740483586334,0.04537668,88691.0,88688.0,0.90500527]
[1740483586644,0.04537668,88691.0,88688.0,0.91954612]
[1740483587059,0.0008485,88732.0,88688.0,0.91954612]
[1740483587262,0.04679685,88708.0,88688.0,0.91954612]
[1740483587882,0.0008485,88732.0,88688.0,0.91954612]
[1740483588087,0.0008485,88732.0,88688.0,0.99894612]
[1740483589086,0.04525276,88708.0,88688.0,0.99894612]
[1740483589297,0.04525276,88708.0,88688.0,0.98440527]
[1740483589880,0.0008485,88732.0,88697.0,0.1]
[1740483590121,0.0008485,88732.0,88714.0,0.1794]
[1740483590328,0.04644713,88717.0,88714.0,0.099694]
[1740483590882,0.0008485,88732.0,88714.0,0.099694]
[1740483591333,0.0008485,88732.0,88705.0,0.012]
[1740483591334,0.0008485,88732.0,88731.0,0.099694]
[1740483592041,0.0008485,88732.0,88727.0,0.099694]
[1740483592336,0.0008485,88732.0,88716.0,0.74586527]
[1740483592337,0.0008485,88732.0,88726.0,0.099694]
[1740483592538,0.0008485,88732.0,88731.0,4e-05]
[1740483592719,0.04660657,88732.0,88731.0,4e-05]
[1740483592919,0.04660657,88732.0,88731.0,0.099734]
[1740483593907,0.04660657,88732.0,88731.0,0.10131167]
[1740483594103,0.04660657,88732.0,88731.0,0.84559927]
[1740483594311,0.0008485,88732.0,88731.0,0.84559927]
[1740483594521,0.014212,88778.0,88763.0,0.099694]
[1740483595203,0.01935157,88809.0,88763.0,0.1]
[1740483595374,0.01176279,88808.0,88763.0,0.1]
[1740483595785,0.00850098,88771.0,88763.0,0.1]
[1740483597220,0.00850098,88771.0,88763.0,0.10004]
[1740483598176,0.00350098,88771.0,88763.0,0.10004]
[1740483599027,0.25,88807.0,88772.0,0.1]
[1740483599234,0.25,88807.0,88779.0,0.1]
[1740483599235,0.04721935,88806.0,88779.0,0.1]
[1740483599408,0.00834752,88791.0,88784.0,0.1]
[1740483599609,0.04663825,88808.0,88804.0,0.1]
[1740483599960,0.01935157,88809.0,88808.0,0.1]
[1740483600713,0.06436893,88809.0,88808.0,0.1]
[1740483600918,0.06436893,88809.0,88804.0,0.1]
[1740483601327,0.06427263,88809.0,88808.0,0.1]
[1740483601952,0.01925527,88809.0,88808.0,0.1]
[1740483602385,0.01925527,88809.0,88808.0,0.10157603]
[1740483603188,0.04401135,88816.0,88815.0,0.1]
[1740483603360,0.00831355,88837.0,88820.0,0.1]
[1740483603972,0.00826102,88839.0,88820.0,0.1]
[1740483604180,0.00826102,88839.0,88814.0,0.1]
[1740483604395,0.00826102,88839.0,88811.0,0.1]
[1740483604631,0.00826102,88839.0,88820.0,0.1]
[1740483604837,0.0473562,88821.0,88805.0,0.1]
[1740483605037,0.01454085,88820.0,88806.0,0.1]
[1740483605257,0.01454085,88820.0,88804.0,4e-05]
[1740483605258,0.02073056,88820.0,88804.0,4e-05]
[1740483605479,0.04716349,88821.0,88804.0,4e-05]
[1740483605687,0.00831863,88801.0,88787.0,0.3235]
[1740483605899,0.01454085,88800.0,88764.0,0.4235]
[1740483606257,0.01454085,88800.0,88788.0,0.1]
[1740483606456,0.01454085,88800.0,88789.0,0.1]
[1740483606684,0.01454085,88800.0,88788.0,0.3235]
[1740483606822,0.00831863,88801.0,88792.0,0.1]
[1740483607645,0.00861769,88825.0,88820.0,0.1]
[1740483607845,0.047,88861.0,88820.0,0.1]
[1740483608052,0.01851444,88860.0,88820.0,0.1]
[1740483608584,0.0008479,88860.0,88820.0,0.4235]
[1740483608784,0.0008479,88821.0,88820.0,0.4235]
[1740483609762,0.0008479,88821.0,88820.0,0.42354]
[1740483609967,0.0008479,88821.0,88820.0,0.50484]
[1740483610434,0.05625986,88897.0,88843.0,0.1]
[1740483610739,0.00841724,88851.0,88830.0,0.1]
[1740483610954,0.05606252,88893.0,88825.0,0.1]
[1740483611125,0.00839437,88844.0,88820.0,4e-05]
[1740483611336,0.00839437,88844.0,88819.0,0.07653498]
[1740483611484,0.00839437,88844.0,88817.0,0.07653498]
[1740483611687,0.00841555,88821.0,88803.0,0.07653498]
[1740483611899,0.00841555,88821.0,88808.0,0.07653498]
[1740483612085,0.00847992,88810.0,88800.0,0.05711132]
[1740483612283,0.00847992,88810.0,88800.0,0.05310132]
[1740483612730,0.00847992,88810.0,88803.0,0.05310132]
[1740483613108,0.00847992,88810.0,88806.0,0.1]
[1740483613304,0.00847992,88810.0,88809.0,0.15310132]
[1740483613508,0.00847992,88810.0,88809.0,0.05310132]
[1740483613710,0.008485,88819.0,88806.0,0.1]
[1740483613915,0.01454085,88818.0,88801.0,0.05310132]
[1740483614200,0.008485,88819.0,88795.0,0.05310132]
[1740483614511,0.008485,88819.0,88804.0,0.05310132]
[1740483614919,0.008485,88819.0,88781.0,0.00157661]
[1740483615088,0.29689868,88845.0,88793.0,0.05310132]
[1740483615089,0.00838082,88794.0,88793.0,0.05310132]
[1740483615319,0.25,88838.0,88794.0,0.05310132]
[1740483615520,0.25,88838.0,88784.0,0.09042051]
[1740483615521,0.00043842,88795.0,88784.0,0.05310132]
[1740483615841,0.00043842,88795.0,88769.0,0.3235]
[1740483615842,0.00043842,88795.0,88778.0,0.05310132]
[1740483616761,0.00043842,88795.0,88779.0,0.05310132]
[1740483617828,0.00043842,88795.0,88767.0,0.1]
[1740483618069,0.00043842,88795.0,88759.0,0.3235]
[1740483618198,0.00031842,88795.0,88761.0,0.01889579]
[1740483618382,0.26454085,88806.0,88767.0,0.09042051]
[1740483618585,0.00829123,88768.0,88767.0,0.1093163]
[1740483618782,0.1328397,88807.0,88767.0,0.1093163]
[1740483618783,0.00837514,88786.0,88785.0,0.001693]
[1740483618983,0.00837514,88786.0,88785.0,0.02058879]
[1740483619221,0.00839039,88807.0,88792.0,0.01889579]
[1740483619425,0.00839039,88807.0,88785.0,0.001693]
[1740483619426,0.00839039,88807.0,88791.0,0.01889579]
[1740483619627,0.01454085,88806.0,88785.0,0.001693]
[1740483620476,0.00839039,88807.0,88785.0,0.001693]
[1740483620816,0.00839039,88807.0,88799.0,0.09042051]
[1740483621018,0.0566594,88853.0,88808.0,0.01889579]
[1740483621019,0.0366,88846.0,88808.0,0.01889579]
[1740483621232,0.0366,88846.0,88811.0,0.01889579]
[1740483621744,0.0366,88846.0,88799.0,0.09042051]
[1740483621745,0.0366,88846.0,88822.0,0.01889579]
[1740483621959,0.1151679,88852.0,88822.0,0.01889579]
[1740483622324,0.1151679,88852.0,88812.0,0.4235]
[1740483622325,0.1151679,88852.0,88826.0,0.01889579]
[1740483622525,0.0366,88862.0,88827.0,0.01689579]
[1740483622854,0.0366,88862.0,88829.0,0.01689579]
[1740483623299,0.0366,88862.0,88831.0,0.1]
[1740483623447,0.0038465,88838.0,88837.0,0.11689579]
[1740483623798,0.0038465,88838.0,88837.0,0.2073163]
[1740483624469,0.0008465,88838.0,88837.0,0.2073163]
[1740483625014,0.0008465,88838.0,88837.0,0.20893202]
[1740483625220,0.00841375,88881.0,88868.0,0.08432279]
[1740483625434,0.09988584,88885.0,88874.0,0.06080579]
[1740483625642,0.09988584,88885.0,88874.0,0.05049127]
[1740483625643,0.00857382,88883.0,88874.0,0.05049127]
[1740483625844,0.08479868,88885.0,88876.0,0.05049127]
[1740483626044,0.08479868,88885.0,88883.0,0.05049127]
[1740483626729,0.08479868,88885.0,88873.0,0.0473]
[1740483626730,0.08479868,88885.0,88884.0,0.14091178]
[1740483627145,0.0008465,88898.0,88897.0,0.05049127]
[1740483627383,0.0008465,88898.0,88897.0,0.06249127]
[1740483627681,0.0008465,88927.0,88926.0,0.05049127]
[1740483628238,0.0008465,88927.0,88926.0,0.12929127]
[1740483629042,0.0008465,88927.0,88926.0,0.18016496]
[1740483629751,0.0008465,88927.0,88926.0,0.19912496]
[1740483630350,0.0008465,88927.0,88926.0,0.19212496]
[1740483630555,0.0008465,88927.0,88926.0,0.19912496]
[1740483630750,0.0008465,88927.0,88926.0,0.18716496]
[1740483630958,0.0008465,88927.0,88926.0,0.1351]
[1740483631165,0.0008465,88927.0,88926.0,0.13629127]
[1740483631794,0.0008465,88927.0,88926.0,0.05749127]
[1740483632019,0.0008465,88927.0,88926.0,0.00912658]
[1740483632173,0.0008465,88927.0,88911.0,0.05049127]
[1740483632174,0.00924925,88927.0,88911.0,0.05049127]
[1740483632379,0.00924925,88927.0,88900.0,0.1]
[1740483632380,0.0237901,88927.0,88926.0,0.00204479]
[1740483632615,0.00924925,88927.0,88900.0,0.1]
[1740483632911,0.00924925,88927.0,88902.0,0.05049127]
[1740483633107,0.00924925,88927.0,88912.0,0.05049127]
[1740483633237,0.00924925,88927.0,88926.0,0.005]
[1740483633438,0.00924925,88927.0,88926.0,0.0016764]
[1740483633645,0.00924925,88927.0,88900.0,0.1]
[1740483633646,0.01454085,88926.0,88900.0,0.1]
[1740483633837,0.01154085,88926.0,88901.0,0.00162157]
[1740483634041,0.00863705,88902.0,88900.0,0.06778724]
[1740483634391,0.00863705,88902.0,88900.0,0.02879249]
[1740483634562,0.00863705,88902.0,88883.0,0.05049127]
[1740483634940,0.00863705,88902.0,88875.0,0.05049127]
[1740483635365,0.00863705,88902.0,88886.0,0.05049127]
[1740483636474,0.00863705,88902.0,88887.0,0.05049127]
[1740483636673,0.00863705,88902.0,88880.0,0.05049127]
[1740483637225,0.00963705,88902.0,88878.0,0.05049127]
[1740483637379,0.01454085,88901.0,88866.0,0.01196]
[1740483637583,0.01454085,88901.0,88867.0,0.05049127]
[1740483637981,0.01454085,88901.0,88866.0,0.05049127]
[1740483638187,0.05685606,88919.0,88867.0,0.1]
[1740483638388,0.00568561,88918.0,88881.0,0.1]
[1740483638589,0.00862215,88896.0,88885.0,0.1]
[1740483638811,0.00862215,88896.0,88887.0,0.1]
[1740483639211,0.00862215,88896.0,88889.0,0.1]
[1740483639391,0.00862215,88896.0,88883.0,0.09042051]
[1740483639593,0.00862215,88896.0,88878.0,0.5428]
[1740483639973,0.00862215,88896.0,88878.0,0.6428]
[1740483640178,0.00862215,88896.0,88881.0,0.09042051]
[1740483640381,0.00862215,88896.0,88885.0,0.1]
[1740483640626,0.00862215,88896.0,88878.0,0.5428]
[1740483641033,0.01454085,88895.0,88878.0,0.5428]
[1740483641350,0.01454085,88895.0,88879.0,0.00161257]
[1740483641554,0.0069763,88894.0,88858.0,0.1]
[1740483641918,0.01454085,88893.0,88865.0,0.09042051]
[1740483642128,0.0069763,88894.0,88870.0,0.1]
[1740483642327,0.0069763,88894.0,88871.0,0.00161221]
[1740483642969,0.00862215,88896.0,88872.0,0.1]
[1740483643175,0.1,88929.0,88872.0,0.1]
[1740483643176,0.00829876,88910.0,88897.0,0.1]
[1740483643344,0.13486885,88966.0,88907.0,0.1]
[1740483643545,0.1134335,88956.0,88907.0,0.1]
[1740483643746,0.0084122,88918.0,88908.0,0.00210812]
[1740483644593,0.01764595,88948.0,88908.0,0.00210812]
[1740483645402,0.00851289,88919.0,88908.0,0.00210812]
[1740483645765,0.00851289,88919.0,88890.0,0.5428]
[1740483645766,0.01454085,88918.0,88890.0,0.5428]
[1740483646149,0.01454085,88918.0,88856.0,0.09042051]
[1740483646150,0.01454085,88918.0,88891.0,0.00228307]
[1740483646324,0.01454085,88916.0,88872.0,0.1]
[1740483646528,0.01454085,88916.0,88874.0,0.09042051]
[1740483646731,0.00825303,88892.0,88882.0,0.1]
[1740483646928,0.0084401,88895.0,88886.0,0.1]
[1740483647137,0.25,88924.0,88894.0,0.09042051]
[1740483647483,0.00844179,88906.0,88895.0,0.00229238]
[1740483648216,0.00844179,88906.0,88900.0,0.1]
[1740483648414,0.00844179,88906.0,88897.0,0.1]
[1740483648948,0.00844179,88906.0,88898.0,0.00229721]
[1740483649152,0.00844179,88906.0,88903.0,0.1]
[1740483649502,0.00844179,88906.0,88901.0,0.1]
[1740483649694,0.00844179,88906.0,88904.0,0.00228927]
[1740483649905,0.00844179,88906.0,88897.0,0.1]
[1740483650060,0.00844179,88906.0,88887.0,0.5428]
[1740483650260,0.00844179,88906.0,88888.0,0.00228617]
[1740483650762,0.00534179,88906.0,88888.0,0.00228617]
[1740483651168,0.00534179,88906.0,88878.0,0.1]
[1740483651484,0.00534179,88906.0,88879.0,0.00216776]
[1740483652136,0.00534179,88906.0,88876.0,0.1]
[1740483652335,0.00534179,88906.0,88888.0,0.1]
[1740483652535,0.00534179,88906.0,88893.0,0.09042051]
[1740483652709,0.06096,88934.0,88893.0,0.09042051]
[1740483652885,0.06096,88934.0,88907.0,0.1]
[1740483652886,0.049,88934.0,88907.0,0.1]
[1740483653252,0.00845935,88916.0,88912.0,0.1]
[1740483653452,0.0473,88953.0,88914.0,0.1]
[1740483653657,0.0473,88953.0,88924.0,0.1]
[1740483653880,0.0134335,88956.0,88925.0,0.10218642]
[1740483654082,0.00857957,88934.0,88926.0,0.1]
[1740483654454,0.0134335,88956.0,88926.0,0.10218642]
[1740483655297,0.00863037,88941.0,88926.0,0.10218642]
[1740483656043,0.0134335,88956.0,88926.0,0.10218642]
[1740483656398,0.0134335,88956.0,88926.0,0.64498642]
[1740483657157,0.0134335,88956.0,88926.0,0.72638642]
[1740483657346,0.0134335,88956.0,88926.0,1.06184642]
[1740483658090,0.0134335,88956.0,88932.0,0.09042051]
[1740483658302,0.0134335,88956.0,88955.0,0.1787]
[1740483658512,0.0134335,88956.0,88955.0,0.18027356]
[1740483658647,0.0134335,88956.0,88955.0,0.18235833]
[1740483659453,0.0134335,88956.0,88955.0,0.72515833]
[1740483659674,0.0134335,88956.0,88955.0,0.72358477]
[1740483660587,0.0134335,88956.0,88955.0,0.64488477]
[1740483662611,0.0134335,88956.0,88955.0,0.54488477]
[1740483662778,0.0134335,88956.0,88955.0,0.00208477]
[1740483663207,0.0134335,88956.0,88944.0,0.1]
[1740483663752,0.0134335,88956.0,88945.0,0.00163762]
[1740483663926,0.00850664,88946.0,88945.0,0.00163762]
[1740483664107,0.00850664,88946.0,88916.0,0.0462]
[1740483664108,0.00850664,88946.0,88916.0,0.1]
[1740483664305,0.00850664,88946.0,88909.0,0.1]
[1740483664704,0.00850664,88946.0,88902.0,0.0823]
[1740483664705,0.00848718,88917.0,88907.0,0.1]
[1740483664907,0.00848718,88917.0,88909.0,0.1]
[1740483665028,0.25,88949.0,88935.0,0.1]
[1740483665228,0.25,88949.0,88940.0,0.1]
[1740483665500,0.00847268,88941.0,88940.0,0.1]
[1740483665707,0.04690125,88966.0,88952.0,0.1]
[1740483665864,0.04690125,88966.0,88955.0,0.1]
[1740483666187,0.04690125,88966.0,88955.0,0.4235]
[1740483666394,0.04690125,88966.0,88955.0,0.5066]
[1740483666780,0.04690125,88966.0,88955.0,1.06136]
[1740483667928,0.04690125,88966.0,88965.0,0.1]
[1740483668140,0.09940753,88974.0,88966.0,0.1323]
[1740483668285,0.09940753,88974.0,88973.0,0.1]
[1740483668491,0.09940753,88974.0,88973.0,0.10157328]
[1740483668692,0.09940753,88974.0,88973.0,0.1]
[1740483668892,0.09940753,88974.0,88973.0,0.9663]
[1740483670062,0.09940753,88974.0,88973.0,0.97826]
[1740483670282,0.89319195,89000.0,88973.0,0.97826]
[1740483670485,0.89319195,89000.0,88997.0,0.1]
[1740483671083,0.89319195,89000.0,88981.0,0.1]
[1740483671283,0.89319195,89000.0,88986.0,0.1]
[1740483671488,0.89319195,89000.0,88976.0,0.00157328]
[1740483671489,0.89319195,89000.0,88992.0,0.1]
[1740483671696,0.89319195,89000.0,88988.0,0.1]
[1740483671924,0.89319195,89000.0,88993.0,0.1]
[1740483672272,0.89319195,89000.0,88988.0,0.1]
[1740483672879,0.89319195,89000.0,88977.0,0.1]
[1740483672880,0.00852822,88981.0,88977.0,0.1]
[1740483673006,0.00852822,88981.0,88970.0,0.97]
[1740483673205,0.00852822,88981.0,88970.0,0.67958168]
[1740483673465,0.0486,88979.0,88970.0,0.57129071]
[1740483673669,0.33656691,88978.0,88970.0,0.57129071]
[1740483673884,0.33656691,88978.0,88970.0,0.53746867]
[1740483674029,0.33656691,88978.0,88970.0,0.50364663]
[1740483674228,0.27086815,88977.0,88970.0,0.46982459]
[1740483674633,0.27086815,88977.0,88970.0,0.42898469]
[1740483674837,0.04291041,88976.0,88970.0,0.39516265]
[1740483675051,0.27086815,88977.0,88970.0,0.39516265]
[1740483675406,0.02086815,88975.0,88970.0,0.39516265]
[1740483677255,0.02086815,88974.0,88970.0,0.39516265]
[1740483677910,0.02086815,88974.0,88973.0,0.1]
[1740483678726,0.02086815,88974.0,88971.0,0.09042051]
[1740483678727,0.02086815,88974.0,88971.0,0.19042051]
[1740483679324,0.02086815,88974.0,88973.0,0.1]
[1740483679877,0.89319195,89000.0,88982.0,0.1]
[1740483680075,0.1033618,88998.0,88982.0,0.4235]
[1740483680318,0.00840379,88996.0,88982.0,0.4235]
[1740483681052,0.00840379,88996.0,88982.0,0.3235]
[1740483681287,0.00840379,88996.0,88982.0,4e-05]
[1740483684030,0.00840379,88996.0,88970.0,0.39685265]
[1740483684031,0.3402679,88995.0,88970.0,0.26017844]
[1740483684234,0.3987206,88994.0,88970.0,0.26017844]
[1740483684409,0.04250213,88993.0,88970.0,0.22634669]
[1740483684611,0.03486364,88992.0,88970.0,0.22634669]
[1740483684810,0.36385696,88994.0,88970.0,0.22634669]
[1740483685369,0.00833562,88971.0,88970.0,0.22634669]
[1740483686254,0.00837114,88977.0,88970.0,0.22634669]
[1740483686430,0.00837114,88977.0,88970.0,0.22638669]
[1740483686957,0.02099667,88971.0,88970.0,0.22638669]
[1740483688842,0.02099667,88971.0,88970.0,0.32638669]
[1740483689075,0.02099667,88971.0,88970.0,0.40358669]
[1740483689543,0.00099667,88971.0,88970.0,0.40358669]
[1740483691150,0.10007567,89010.0,88984.0,0.1]
[1740483691362,0.10007567,89010.0,88987.0,0.1]
[1740483691672,60.0,89264.0,88988.0,0.1]
[1740483691930,0.05678577,89055.0,88990.0,0.1]
[1740483692162,0.04693695,89056.0,88991.0,0.78321]
[1740483692163,0.00835507,88999.0,88991.0,0.78321]
[1740483692397,0.00835507,88999.0,88992.0,0.78321]
[1740483694160,0.00835507,88999.0,88992.0,0.74938604]
[1740483694564,0.00835507,88999.0,88992.0,0.71556208]
[1740483694786,0.00835507,88999.0,88970.0,0.30358669]
[1740483694787,0.00835507,88999.0,88993.0,0.48037902]
[1740483694995,0.05663714,89019.0,88970.0,0.22638669]
[1740483694996,0.00847882,88994.0,88970.0,0.22638669]